[Event "Titled Tuesday Blitz April 12 Early 2022"]
[White "Pajeken, Jakob Leon"]
[Black "Tanenbaum, Zachary"]
[WhiteFideId "12942839"]
[BlackFideId "2060850"]
[WhiteElo "2351"]
[BlackElo "2168"]
[Result "0-1"]
[Round "08"]
[TimeControl "180+1"]
[Date "2022.04.12"]
[WhiteClock "0:00:09"]
[BlackClock "0:00:16"]

1. d4 {[%clk 0:03:00]}  d5 {[%clk 0:03:00]} 2. Nf3 {[%clk 0:02:59]}  Bf5 {[%clk 0:02:59]} 3. c4 {[%clk 0:02:37]}  e6 {[%clk 0:03:00]} 4. Nc3 {[%clk 0:02:36]}  c6 {[%clk 0:02:59]} 5. Bg5 {[%clk 0:02:24]}  Qb6 {[%clk 0:02:58]} 6. Qd2 {[%clk 0:02:19]}  Nd7 {[%clk 0:02:57]} 7. Nh4 {[%clk 0:02:12]}  Bg4 {[%clk 0:02:51]} 8. h3 {[%clk 0:02:11]}  Bh5 {[%clk 0:02:52]} 9. g4 {[%clk 0:02:09]}  Bg6 {[%clk 0:02:52]} 10. Nxg6 {[%clk 0:02:09]}  hxg6 {[%clk 0:02:53]} 11. Bg2 {[%clk 0:02:08]}  Ngf6 {[%clk 0:02:52]} 12. c5 {[%clk 0:02:00]}  Qc7 {[%clk 0:02:51]} 13. Bf4 {[%clk 0:02:00]}  Qc8 {[%clk 0:02:47]} 14. O-O {[%clk 0:01:55]}  Be7 {[%clk 0:02:47]} 15. b4 {[%clk 0:01:54]}  Bd8 {[%clk 0:02:47]} 16. a4 {[%clk 0:01:49]}  Bc7 {[%clk 0:02:47]} 17. e3 {[%clk 0:01:50]}  e5 {[%clk 0:02:42]} 18. Bg3 {[%clk 0:01:38]}  O-O {[%clk 0:02:34]} 19. f4 {[%clk 0:01:32]}  exd4 {[%clk 0:02:31]} 20. exd4 {[%clk 0:01:32]}  Re8 {[%clk 0:02:31]} 21. Rae1 {[%clk 0:01:32]}  Nf8 {[%clk 0:02:30]} 22. Bh4 {[%clk 0:01:28]}  Ne6 {[%clk 0:02:28]} 23. f5 {[%clk 0:01:22]}  Nf8 {[%clk 0:01:45]} 24. Bxf6 {[%clk 0:01:10]}  gxf6 {[%clk 0:01:46]} 25. fxg6 {[%clk 0:01:10]}  Nxg6 {[%clk 0:01:44]} 26. Rxf6 {[%clk 0:01:08]}  Rxe1+ {[%clk 0:01:37]} 27. Qxe1 {[%clk 0:01:09]}  Qf8 {[%clk 0:01:32]} 28. Qf2 {[%clk 0:00:55]}  Qg7 {[%clk 0:01:29]} 29. h4 {[%clk 0:00:52]}  Bd8 {[%clk 0:01:27]} 30. Rf5 {[%clk 0:00:43]}  Bxh4 {[%clk 0:01:23]} 31. Qe3 {[%clk 0:00:41]}  Kf8 {[%clk 0:01:22]} 32. Ne2 {[%clk 0:00:25]}  Re8 {[%clk 0:01:21]} 33. Qd3 {[%clk 0:00:26]}  Qh6 {[%clk 0:01:11]} 34. b5 {[%clk 0:00:16]}  Bg5 {[%clk 0:01:00]} 35. a5 {[%clk 0:00:13]}  Nf4 {[%clk 0:00:23]} 36. Nxf4 {[%clk 0:00:12]}  Bxf4 {[%clk 0:00:24]} 37. a6 {[%clk 0:00:11]}  Re1+ {[%clk 0:00:16]} 38. Qf1 {[%clk 0:00:09]}  Be3+ {[%clk 0:00:15]} 39. Rf2 {[%clk 0:00:09]}  Bxf2+ {[%clk 0:00:15]} 40. Kxf2 {[%clk 0:00:09]}  Qe3# {[%clk 0:00:16]} 0-1


[Site "https://www.chess.com"]

[Event "Titled Tuesday Blitz April 12 Early 2022"]
[White "Papadiamandis, Elliot"]
[Black "Lach, Aleksandra"]
[WhiteFideId "36074160"]
[BlackFideId "1134299"]
[WhiteElo "2088"]
[BlackElo "2172"]
[Result "1/2-1/2"]
[Round "08"]
[TimeControl "180+1"]
[Date "2022.04.13"]
[WhiteClock "0:00:24"]
[BlackClock "0:00:13"]

1. e4 {[%clk 0:01:59]}  c5 {[%clk 0:02:59]} 2. Nc3 {[%clk 0:01:59]}  Nc6 {[%clk 0:02:58]} 3. Nge2 {[%clk 0:01:59]}  g6 {[%clk 0:02:56]} 4. g3 {[%clk 0:01:59]}  Bg7 {[%clk 0:02:56]} 5. Bg2 {[%clk 0:02:00]}  Nf6 {[%clk 0:02:56]} 6. O-O {[%clk 0:02:01]}  O-O {[%clk 0:02:55]} 7. d3 {[%clk 0:02:02]}  d6 {[%clk 0:02:50]} 8. f4 {[%clk 0:02:02]}  Rb8 {[%clk 0:02:39]} 9. h3 {[%clk 0:02:02]}  Nd4 {[%clk 0:02:28]} 10. Be3 {[%clk 0:02:01]}  e5 {[%clk 0:02:23]} 11. f5 {[%clk 0:01:49]}  gxf5 {[%clk 0:02:08]} 12. exf5 {[%clk 0:01:48]}  Nxf5 {[%clk 0:01:58]} 13. Bg5 {[%clk 0:01:48]}  h6 {[%clk 0:01:58]} 14. Bd2 {[%clk 0:01:46]}  Nd4 {[%clk 0:01:52]} 15. Ne4 {[%clk 0:01:40]}  Nxe4 {[%clk 0:01:52]} 16. dxe4 {[%clk 0:01:41]}  Nxe2+ {[%clk 0:01:46]} 17. Qxe2 {[%clk 0:01:42]}  f5 {[%clk 0:01:47]} 18. exf5 {[%clk 0:01:40]}  Bxf5 {[%clk 0:01:46]} 19. g4 {[%clk 0:01:39]}  Bg6 {[%clk 0:01:43]} 20. Bd5+ {[%clk 0:01:31]}  Kh8 {[%clk 0:01:39]} 21. Be3 {[%clk 0:01:30]}  Qh4 {[%clk 0:01:36]} 22. Kg2 {[%clk 0:01:31]}  b5 {[%clk 0:01:24]} 23. c3 {[%clk 0:01:13]}  h5 {[%clk 0:01:05]} 24. Bf2 {[%clk 0:01:12]}  Qg5 {[%clk 0:01:00]} 25. Be3 {[%clk 0:01:12]}  Qh4 {[%clk 0:01:00]} 26. Bf2 {[%clk 0:01:07]}  Qg5 {[%clk 0:00:38]} 27. Bg3 {[%clk 0:01:07]}  h4 {[%clk 0:00:31]} 28. Bf2 {[%clk 0:01:07]}  e4 {[%clk 0:00:21]} 29. Rad1 {[%clk 0:01:03]}  Qe5 {[%clk 0:00:19]} 30. Bxh4 {[%clk 0:01:00]}  Rxf1 {[%clk 0:00:19]} 31. Qxf1 {[%clk 0:00:57]}  e3 {[%clk 0:00:20]} 32. Bf3 {[%clk 0:00:41]}  Re8 {[%clk 0:00:19]} 33. Bg3 {[%clk 0:00:41]}  Qe6 {[%clk 0:00:18]} 34. Qe2 {[%clk 0:00:41]}  Be4 {[%clk 0:00:18]} 35. Rf1 {[%clk 0:00:34]}  Bd5 {[%clk 0:00:16]} 36. Bxd5 {[%clk 0:00:24]}  Qxd5+ {[%clk 0:00:16]} 37. Kg1 {[%clk 0:00:25]}  Qxa2 {[%clk 0:00:16]} 38. Rf5 {[%clk 0:00:23]}  Qb1+ {[%clk 0:00:14]} 39. Kg2 {[%clk 0:00:23]}  Qe4+ {[%clk 0:00:14]} 40. Kh2 {[%clk 0:00:24]}  d5 {[%clk 0:00:15]} 41. Rh5+ {[%clk 0:00:18]}  Kg8 {[%clk 0:00:15]} 42. Rg5 {[%clk 0:00:19]}  d4 {[%clk 0:00:13]} 43. cxd4 {[%clk 0:00:20]}  cxd4 {[%clk 0:00:13]} 44. Qxb5 {[%clk 0:00:20]}  Qc2+ {[%clk 0:00:12]} 45. Kh1 {[%clk 0:00:19]}  Qe4+ {[%clk 0:00:09]} 46. Kh2 {[%clk 0:00:19]}  e2 {[%clk 0:00:10]} 47. Qc4+ {[%clk 0:00:18]}  Qe6 {[%clk 0:00:09]} 48. Qxe6+ {[%clk 0:00:17]}  Rxe6 {[%clk 0:00:10]} 49. Be1 {[%clk 0:00:17]}  d3 {[%clk 0:00:10]} 50. Kg2 {[%clk 0:00:17]}  Kf7 {[%clk 0:00:10]} 51. Rf5+ {[%clk 0:00:17]}  Ke7 {[%clk 0:00:10]} 52. Kf2 {[%clk 0:00:17]}  Bd4+ {[%clk 0:00:10]} 53. Kf3 {[%clk 0:00:17]}  Bxb2 {[%clk 0:00:10]} 54. Rb5 {[%clk 0:00:16]}  Bc1 {[%clk 0:00:10]} 55. Rb7+ {[%clk 0:00:17]}  Kd6 {[%clk 0:00:09]} 56. Rxa7 {[%clk 0:00:17]}  d2 {[%clk 0:00:09]} 57. Bxd2 {[%clk 0:00:17]}  Bxd2 {[%clk 0:00:08]} 58. Ra6+ {[%clk 0:00:18]}  Ke7 {[%clk 0:00:08]} 59. Rxe6+ {[%clk 0:00:19]}  Kxe6 {[%clk 0:00:08]} 60. Kxe2 {[%clk 0:00:20]}  Bg5 {[%clk 0:00:08]} 61. Kf3 {[%clk 0:00:21]}  Kf6 {[%clk 0:00:09]} 62. Kg3 {[%clk 0:00:21]}  Kg6 {[%clk 0:00:09]} 63. h4 {[%clk 0:00:22]}  Be3 {[%clk 0:00:09]} 64. Kf3 {[%clk 0:00:22]}  Bc1 {[%clk 0:00:09]} 65. Ke4 {[%clk 0:00:22]}  Kf6 {[%clk 0:00:09]} 66. Kf3 {[%clk 0:00:22]}  Kg6 {[%clk 0:00:10]} 67. Kg3 {[%clk 0:00:22]}  Kf6 {[%clk 0:00:10]} 68. h5 {[%clk 0:00:23]}  Kg5 {[%clk 0:00:10]} 69. Kf3 {[%clk 0:00:23]}  Bd2 {[%clk 0:00:11]} 70. Ke2 {[%clk 0:00:22]}  Bc1 {[%clk 0:00:11]} 71. Kd1 {[%clk 0:00:23]}  Bf4 {[%clk 0:00:11]} 72. h6 {[%clk 0:00:23]}  Kxh6 {[%clk 0:00:11]} 73. Ke2 {[%clk 0:00:23]}  Kg5 {[%clk 0:00:12]} 74. Kf3 {[%clk 0:00:24]}  Bd6 {[%clk 0:00:12]} 75. Kg2 {[%clk 0:00:24]}  Kxg4 {[%clk 0:00:13]} 1/2-1/2


[Site "https://www.chess.com"]

[Event "Titled Tuesday Blitz April 12 Early 2022"]
[White "Pinheiro, Iung Alicio de O."]
[Black "Suarez Uriel, Adrian"]
[WhiteFideId "2104350"]
[BlackFideId "22230874"]
[WhiteElo "2576"]
[BlackElo "2316"]
[Result "1-0"]
[Round "08"]
[TimeControl "180+1"]
[Date "2022.04.13"]
[WhiteClock "0:00:35"]
[BlackClock "0:01:43"]

1. c4 {[%clk 0:03:00]}  e5 {[%clk 0:02:57]} 2. g3 {[%clk 0:02:59]}  Nf6 {[%clk 0:02:56]} 3. Bg2 {[%clk 0:02:58]}  h6 {[%clk 0:02:56]} 4. Nc3 {[%clk 0:02:56]}  Bb4 {[%clk 0:02:57]} 5. Nd5 {[%clk 0:02:53]}  Bc5 {[%clk 0:02:55]} 6. e3 {[%clk 0:02:34]}  Nxd5 {[%clk 0:02:53]} 7. cxd5 {[%clk 0:02:34]}  d6 {[%clk 0:02:52]} 8. b4 {[%clk 0:02:30]}  Bb6 {[%clk 0:02:50]} 9. Bb2 {[%clk 0:02:30]}  O-O {[%clk 0:02:50]} 10. Ne2 {[%clk 0:02:30]}  a5 {[%clk 0:02:50]} 11. b5 {[%clk 0:02:23]}  Nd7 {[%clk 0:02:47]} 12. d4 {[%clk 0:02:21]}  exd4 {[%clk 0:02:46]} 13. Nxd4 {[%clk 0:02:18]}  a4 {[%clk 0:02:46]} 14. O-O {[%clk 0:02:11]}  a3 {[%clk 0:02:40]} 15. Bc3 {[%clk 0:02:11]}  Nc5 {[%clk 0:02:41]} 16. Rc1 {[%clk 0:02:06]}  Re8 {[%clk 0:02:41]} 17. Qc2 {[%clk 0:02:05]}  Bd7 {[%clk 0:02:33]} 18. Nf5 {[%clk 0:01:59]}  f6 {[%clk 0:02:20]} 19. Nxh6+ {[%clk 0:01:49]}  Kf8 {[%clk 0:02:18]} 20. Qg6 {[%clk 0:01:41]}  Qe7 {[%clk 0:02:15]} 21. Nf5 {[%clk 0:01:32]}  Qf7 {[%clk 0:02:14]} 22. Qh7 {[%clk 0:01:24]}  Qg8 {[%clk 0:02:15]} 23. Qh5 {[%clk 0:01:20]}  Ne4 {[%clk 0:02:14]} 24. Nh4 {[%clk 0:01:12]}  Nxc3 {[%clk 0:01:58]} 25. Ng6+ {[%clk 0:01:10]}  Kf7 {[%clk 0:01:58]} 26. Rxc3 {[%clk 0:01:01]}  Bxb5 {[%clk 0:01:53]} 27. Rb1 {[%clk 0:00:54]}  Bd7 {[%clk 0:01:53]} 28. Rxb6 {[%clk 0:00:46]}  cxb6 {[%clk 0:01:52]} 29. Rc7 {[%clk 0:00:46]}  Red8 {[%clk 0:01:48]} 30. Bh3 {[%clk 0:00:46]}  Rac8 {[%clk 0:01:46]} 31. Rxd7+ {[%clk 0:00:43]}  Rxd7 {[%clk 0:01:45]} 32. Bxd7 {[%clk 0:00:44]}  Rc1+ {[%clk 0:01:44]} 33. Kg2 {[%clk 0:00:44]}  Qd8 {[%clk 0:01:44]} 34. Nh8+ {[%clk 0:00:36]}  Kg8 {[%clk 0:01:43]} 35. Be6+ {[%clk 0:00:35]}  Kf8 {[%clk 0:01:43]} 36. Qf7# {[%clk 0:00:35]} 1-0


[Site "https://www.chess.com"]

[Event "Titled Tuesday Blitz April 12 Early 2022"]
[White "Plazuelo Pascual, Juan"]
[Black "Rustemov, Alexander"]
[WhiteFideId "32059566"]
[BlackFideId "4119002"]
[WhiteElo "2359"]
[BlackElo "2806"]
[Result "0-1"]
[Round "08"]
[TimeControl "180+1"]
[Date "2022.04.13"]
[WhiteClock "0:00:02"]
[BlackClock "0:00:37"]

1. d4 {[%clk 0:03:00]}  d5 {[%clk 0:02:59]} 2. c4 {[%clk 0:02:56]}  c6 {[%clk 0:02:58]} 3. Nc3 {[%clk 0:02:55]}  dxc4 {[%clk 0:02:58]} 4. e3 {[%clk 0:02:43]}  Be6 {[%clk 0:02:55]} 5. Nf3 {[%clk 0:02:42]}  Nf6 {[%clk 0:02:55]} 6. a4 {[%clk 0:02:31]}  h6 {[%clk 0:02:50]} 7. Ne5 {[%clk 0:02:28]}  c5 {[%clk 0:02:47]} 8. dxc5 {[%clk 0:02:12]}  Qc7 {[%clk 0:02:40]} 9. Nxc4 {[%clk 0:02:12]}  Qxc5 {[%clk 0:02:39]} 10. b3 {[%clk 0:02:12]}  Nc6 {[%clk 0:02:32]} 11. Ba3 {[%clk 0:02:11]}  Qg5 {[%clk 0:02:23]} 12. Nb5 {[%clk 0:02:03]}  Rc8 {[%clk 0:02:16]} 13. h4 {[%clk 0:01:16]}  Qg6 {[%clk 0:01:51]} 14. Be2 {[%clk 0:01:16]}  a6 {[%clk 0:01:45]} 15. Nb6 {[%clk 0:00:59]}  axb5 {[%clk 0:01:38]} 16. Nxc8 {[%clk 0:00:59]}  b4 {[%clk 0:01:38]} 17. Bxb4 {[%clk 0:00:50]}  Bxc8 {[%clk 0:01:33]} 18. Rc1 {[%clk 0:00:33]}  Bd7 {[%clk 0:01:14]} 19. Ba3 {[%clk 0:00:26]}  e5 {[%clk 0:01:01]} 20. Bxf8 {[%clk 0:00:26]}  Rxf8 {[%clk 0:01:01]} 21. O-O {[%clk 0:00:11]}  Bh3 {[%clk 0:00:56]} 22. g3 {[%clk 0:00:05]}  Bxf1 {[%clk 0:00:55]} 23. Bxf1 {[%clk 0:00:06]}  Ke7 {[%clk 0:00:46]} 24. Bg2 {[%clk 0:00:06]}  Rc8 {[%clk 0:00:43]} 25. b4 {[%clk 0:00:04]}  e4 {[%clk 0:00:39]} 26. Qb3 {[%clk 0:00:02]}  Qf5 {[%clk 0:00:37]} 0-1


[Site "https://www.chess.com"]

[Event "Titled Tuesday Blitz April 12 Early 2022"]
[White "Politov, Pavel Y."]
[Black "Lauridsen, Jesper Morch"]
[WhiteFideId "24110515"]
[BlackFideId "1401890"]
[WhiteElo "2090"]
[BlackElo "2315"]
[Result "0-1"]
[Round "08"]
[TimeControl "180+1"]
[Date "2022.04.13"]
[WhiteClock "0:00:05"]
[BlackClock "0:01:03"]

1. e4 {[%clk 0:03:00]}  c5 {[%clk 0:02:59]} 2. Nf3 {[%clk 0:02:58]}  d6 {[%clk 0:02:59]} 3. d4 {[%clk 0:02:59]}  cxd4 {[%clk 0:03:00]} 4. Nxd4 {[%clk 0:03:00]}  Nf6 {[%clk 0:03:00]} 5. Nc3 {[%clk 0:03:00]}  a6 {[%clk 0:03:01]} 6. Bg5 {[%clk 0:03:01]}  e6 {[%clk 0:03:00]} 7. f4 {[%clk 0:03:01]}  Qc7 {[%clk 0:03:00]} 8. Qf3 {[%clk 0:03:00]}  b5 {[%clk 0:02:59]} 9. O-O-O {[%clk 0:02:55]}  Bb7 {[%clk 0:02:59]} 10. a3 {[%clk 0:02:25]}  Be7 {[%clk 0:02:46]} 11. Bxf6 {[%clk 0:02:09]}  Bxf6 {[%clk 0:02:39]} 12. Bxb5+ {[%clk 0:02:09]}  axb5 {[%clk 0:02:35]} 13. Ndxb5 {[%clk 0:02:10]}  Qb6 {[%clk 0:02:36]} 14. Rxd6 {[%clk 0:02:04]}  Nc6 {[%clk 0:02:28]} 15. e5 {[%clk 0:01:57]}  Be7 {[%clk 0:02:27]} 16. Rd3 {[%clk 0:01:43]}  Nxe5 {[%clk 0:02:23]} 17. Qg3 {[%clk 0:01:08]}  Nxd3+ {[%clk 0:02:19]} 18. Qxd3 {[%clk 0:01:09]}  Rd8 {[%clk 0:02:16]} 19. Qc4 {[%clk 0:01:04]}  O-O {[%clk 0:02:12]} 20. Re1 {[%clk 0:01:01]}  Qf2 {[%clk 0:02:02]} 21. Rf1 {[%clk 0:00:46]}  Qe3+ {[%clk 0:01:57]} 22. Kb1 {[%clk 0:00:45]}  Bf6 {[%clk 0:01:45]} 23. a4 {[%clk 0:00:35]}  Bxg2 {[%clk 0:01:37]} 24. Rc1 {[%clk 0:00:34]}  Bd5 {[%clk 0:01:36]} 25. Nxd5 {[%clk 0:00:32]}  exd5 {[%clk 0:01:36]} 26. Qa2 {[%clk 0:00:28]}  Qxf4 {[%clk 0:01:34]} 27. a5 {[%clk 0:00:27]}  Qb4 {[%clk 0:01:32]} 28. Nc7 {[%clk 0:00:22]}  Rb8 {[%clk 0:01:29]} 29. b3 {[%clk 0:00:21]}  Qd6 {[%clk 0:01:09]} 30. a6 {[%clk 0:00:05]}  Qxc7 {[%clk 0:01:06]} 31. Rd1 {[%clk 0:00:05]}  Rfe8 {[%clk 0:01:03]} 0-1


[Site "https://www.chess.com"]

[Event "Titled Tuesday Blitz April 12 Early 2022"]
[White "Reprintsev, Alexander"]
[Black "Uzuner, Tufan Can"]
[WhiteFideId "14100541"]
[BlackFideId "6300499"]
[WhiteElo "2108"]
[BlackElo "2168"]
[Result "1/2-1/2"]
[Round "08"]
[TimeControl "180+1"]
[Date "2022.04.13"]
[WhiteClock "0:00:11"]
[BlackClock "0:00:53"]

1. e4 {[%clk 0:02:49]}  c6 {[%clk 0:02:54]} 2. b3 {[%clk 0:02:00]}  d5 {[%clk 0:02:55]} 3. Qe2 {[%clk 0:01:59]}  dxe4 {[%clk 0:02:51]} 4. Nc3 {[%clk 0:01:59]}  Nf6 {[%clk 0:02:51]} 5. Nxe4 {[%clk 0:02:00]}  Nxe4 {[%clk 0:02:50]} 6. Qxe4 {[%clk 0:02:00]}  Nd7 {[%clk 0:02:50]} 7. Bb2 {[%clk 0:02:00]}  Nf6 {[%clk 0:02:51]} 8. Qe5 {[%clk 0:02:00]}  g6 {[%clk 0:02:44]} 9. O-O-O {[%clk 0:01:54]}  Bg7 {[%clk 0:02:44]} 10. Re1 {[%clk 0:01:55]}  Nh5 {[%clk 0:02:35]} 11. Qe3 {[%clk 0:01:42]}  Bxb2+ {[%clk 0:02:36]} 12. Kxb2 {[%clk 0:01:42]}  Nf6 {[%clk 0:02:29]} 13. Nf3 {[%clk 0:01:40]}  Nd5 {[%clk 0:02:05]} 14. Qe5 {[%clk 0:01:36]}  f6 {[%clk 0:02:01]} 15. Qd4 {[%clk 0:00:59]}  Qb6 {[%clk 0:02:00]} 16. Qh4 {[%clk 0:00:53]}  Bd7 {[%clk 0:01:37]} 17. Bc4 {[%clk 0:00:51]}  Qc5 {[%clk 0:01:29]} 18. d4 {[%clk 0:00:44]}  Qd6 {[%clk 0:01:23]} 19. g3 {[%clk 0:00:30]}  b5 {[%clk 0:01:23]} 20. Bxd5 {[%clk 0:00:28]}  cxd5 {[%clk 0:01:24]} 21. Qf4 {[%clk 0:00:23]}  Qxf4 {[%clk 0:01:21]} 22. gxf4 {[%clk 0:00:24]}  Kf7 {[%clk 0:01:12]} 23. Re3 {[%clk 0:00:24]}  a5 {[%clk 0:01:10]} 24. Rhe1 {[%clk 0:00:23]}  e6 {[%clk 0:01:11]} 25. Rc3 {[%clk 0:00:23]}  Rhc8 {[%clk 0:01:10]} 26. a3 {[%clk 0:00:17]}  b4 {[%clk 0:01:08]} 27. Rxc8 {[%clk 0:00:15]}  Rxc8 {[%clk 0:01:08]} 28. axb4 {[%clk 0:00:15]}  axb4 {[%clk 0:01:09]} 29. Re3 {[%clk 0:00:13]}  Bb5 {[%clk 0:01:06]} 30. c3 {[%clk 0:00:13]}  Ke7 {[%clk 0:00:59]} 31. cxb4 {[%clk 0:00:11]}  Kd6 {[%clk 0:00:59]} 32. Rc3 {[%clk 0:00:12]}  Rb8 {[%clk 0:00:59]} 33. Nd2 {[%clk 0:00:10]}  Bc6 {[%clk 0:00:56]} 34. Ka3 {[%clk 0:00:10]}  Ra8+ {[%clk 0:00:55]} 35. Kb2 {[%clk 0:00:10]}  Rb8 {[%clk 0:00:56]} 36. Ka3 {[%clk 0:00:11]}  Ra8+ {[%clk 0:00:55]} 37. Kb2 {[%clk 0:00:11]}  Rb8 {[%clk 0:00:53]} 1/2-1/2


[Site "https://www.chess.com"]

[Event "Titled Tuesday Blitz April 12 Early 2022"]
[White "Rohith Krishna S"]
[Black "Dubov, Daniil"]
[WhiteFideId "46617051"]
[BlackFideId "24126055"]
[WhiteElo "2117"]
[BlackElo "2791"]
[Result "0-1"]
[Round "08"]
[TimeControl "180+1"]
[Date "2022.04.12"]
[WhiteClock "0:00:12"]
[BlackClock "0:00:07"]

1. d4 {[%clk 0:03:00]}  Nf6 {[%clk 0:02:56]} 2. c4 {[%clk 0:03:01]}  c5 {[%clk 0:02:56]} 3. d5 {[%clk 0:03:01]}  b5 {[%clk 0:02:56]} 4. cxb5 {[%clk 0:02:59]}  a6 {[%clk 0:02:56]} 5. b6 {[%clk 0:02:59]}  e6 {[%clk 0:02:56]} 6. Nc3 {[%clk 0:02:59]}  Nxd5 {[%clk 0:02:56]} 7. Nxd5 {[%clk 0:02:59]}  exd5 {[%clk 0:02:57]} 8. Qxd5 {[%clk 0:02:59]}  Nc6 {[%clk 0:02:58]} 9. Nf3 {[%clk 0:02:58]}  Rb8 {[%clk 0:02:58]} 10. a3 {[%clk 0:02:54]}  Be7 {[%clk 0:02:54]} 11. e3 {[%clk 0:02:52]}  Rxb6 {[%clk 0:02:51]} 12. Bd3 {[%clk 0:02:52]}  Bb7 {[%clk 0:02:42]} 13. Qh5 {[%clk 0:02:48]}  Na5 {[%clk 0:02:29]} 14. Bd2 {[%clk 0:02:42]}  Nb3 {[%clk 0:02:26]} 15. Rd1 {[%clk 0:02:43]}  Nxd2 {[%clk 0:02:23]} 16. Rxd2 {[%clk 0:02:43]}  g6 {[%clk 0:02:20]} 17. Qh6 {[%clk 0:02:30]}  Bf8 {[%clk 0:02:03]} 18. Qf4 {[%clk 0:02:24]}  Bg7 {[%clk 0:02:03]} 19. O-O {[%clk 0:02:22]}  O-O {[%clk 0:01:58]} 20. b4 {[%clk 0:02:04]}  cxb4 {[%clk 0:01:58]} 21. axb4 {[%clk 0:02:05]}  Bc3 {[%clk 0:01:57]} 22. Rc2 {[%clk 0:02:05]}  Rxb4 {[%clk 0:01:36]} 23. Qd6 {[%clk 0:02:03]}  Rb6 {[%clk 0:01:30]} 24. Qa3 {[%clk 0:01:53]}  Bg7 {[%clk 0:01:09]} 25. Rfc1 {[%clk 0:01:41]}  h6 {[%clk 0:01:01]} 26. Qa4 {[%clk 0:01:26]}  Bc6 {[%clk 0:00:56]} 27. Qa5 {[%clk 0:01:24]}  Qb8 {[%clk 0:00:49]} 28. Nd4 {[%clk 0:01:09]}  Bxd4 {[%clk 0:00:46]} 29. exd4 {[%clk 0:01:10]}  Bb5 {[%clk 0:00:46]} 30. Bxb5 {[%clk 0:01:05]}  axb5 {[%clk 0:00:45]} 31. Rb1 {[%clk 0:01:05]}  Qb7 {[%clk 0:00:38]} 32. Rcb2 {[%clk 0:00:47]}  Rb8 {[%clk 0:00:37]} 33. Qb4 {[%clk 0:00:47]}  h5 {[%clk 0:00:34]} 34. h3 {[%clk 0:00:47]}  Qd5 {[%clk 0:00:32]} 35. Re1 {[%clk 0:00:45]}  Rc6 {[%clk 0:00:31]} 36. Re5 {[%clk 0:00:41]}  Qc4 {[%clk 0:00:26]} 37. Rxb5 {[%clk 0:00:14]}  Rxb5 {[%clk 0:00:16]} 38. Qxb5 {[%clk 0:00:15]}  Qxd4 {[%clk 0:00:12]} 39. Qb8+ {[%clk 0:00:16]}  Kg7 {[%clk 0:00:12]} 40. Kh2 {[%clk 0:00:14]}  Rf6 {[%clk 0:00:10]} 41. Re2 {[%clk 0:00:13]}  Rxf2 {[%clk 0:00:09]} 42. Re8 {[%clk 0:00:10]}  Qf4+ {[%clk 0:00:08]} 43. Qxf4 {[%clk 0:00:10]}  Rxf4 {[%clk 0:00:09]} 44. Rd8 {[%clk 0:00:11]}  Rd4 {[%clk 0:00:09]} 45. Kg3 {[%clk 0:00:12]}  h4+ {[%clk 0:00:09]} 46. Kf3 {[%clk 0:00:12]}  Rd2 {[%clk 0:00:09]} 47. g4 {[%clk 0:00:10]}  hxg3 {[%clk 0:00:08]} 48. Kxg3 {[%clk 0:00:10]}  Kf6 {[%clk 0:00:09]} 49. h4 {[%clk 0:00:10]}  Ke7 {[%clk 0:00:09]} 50. Rh8 {[%clk 0:00:11]}  Rd3+ {[%clk 0:00:09]} 51. Kf4 {[%clk 0:00:11]}  Rd4+ {[%clk 0:00:09]} 52. Ke5 {[%clk 0:00:12]}  Ra4 {[%clk 0:00:08]} 53. Kd5 {[%clk 0:00:12]}  Ra5+ {[%clk 0:00:09]} 54. Ke4 {[%clk 0:00:12]}  Rh5 {[%clk 0:00:08]} 55. Ra8 {[%clk 0:00:12]}  Rxh4+ {[%clk 0:00:07]} 0-1


[Site "https://www.chess.com"]

[Event "Titled Tuesday Blitz April 12 Early 2022"]
[White "Roman, Rodrigo"]
[Black "Sztokbant, Bernardo Vainzoff"]
[WhiteFideId "3701220"]
[BlackFideId "2115956"]
[WhiteElo "2001"]
[BlackElo "2225"]
[Result "0-1"]
[Round "08"]
[TimeControl "180+1"]
[Date "2022.04.13"]
[WhiteClock "0:00:49"]
[BlackClock "0:00:16"]

1. c4 {[%clk 0:03:00]}  e6 {[%clk 0:02:58]} 2. Nc3 {[%clk 0:03:01]}  d5 {[%clk 0:02:59]} 3. cxd5 {[%clk 0:03:01]}  exd5 {[%clk 0:02:59]} 4. d4 {[%clk 0:03:02]}  c6 {[%clk 0:02:59]} 5. Nf3 {[%clk 0:03:03]}  Bf5 {[%clk 0:02:59]} 6. Bf4 {[%clk 0:03:03]}  Bd6 {[%clk 0:02:59]} 7. Bxd6 {[%clk 0:03:02]}  Qxd6 {[%clk 0:03:00]} 8. Qb3 {[%clk 0:03:02]}  b6 {[%clk 0:02:54]} 9. e3 {[%clk 0:03:03]}  Nd7 {[%clk 0:02:53]} 10. Rc1 {[%clk 0:03:03]}  Ngf6 {[%clk 0:02:53]} 11. h3 {[%clk 0:02:57]}  O-O {[%clk 0:02:53]} 12. Be2 {[%clk 0:02:57]}  Rfe8 {[%clk 0:02:52]} 13. O-O {[%clk 0:02:57]}  Re7 {[%clk 0:02:30]} 14. Nh2 {[%clk 0:02:57]}  Rae8 {[%clk 0:02:22]} 15. Ng4 {[%clk 0:02:57]}  Bxg4 {[%clk 0:02:06]} 16. hxg4 {[%clk 0:02:57]}  h6 {[%clk 0:02:04]} 17. Bf3 {[%clk 0:02:51]}  Qe6 {[%clk 0:02:00]} 18. Ne2 {[%clk 0:02:50]}  Qd6 {[%clk 0:01:42]} 19. Ng3 {[%clk 0:02:41]}  g6 {[%clk 0:01:41]} 20. Qa4 {[%clk 0:02:37]}  c5 {[%clk 0:01:25]} 21. Qxa7 {[%clk 0:02:29]}  cxd4 {[%clk 0:01:15]} 22. exd4 {[%clk 0:02:22]}  Qf4 {[%clk 0:01:10]} 23. Qa3 {[%clk 0:02:14]}  Qxd4 {[%clk 0:01:06]} 24. Rfd1 {[%clk 0:02:11]}  Qf4 {[%clk 0:01:04]} 25. Qd3 {[%clk 0:01:57]}  Ne5 {[%clk 0:01:02]} 26. Qd4 {[%clk 0:01:46]}  Nxf3+ {[%clk 0:00:57]} 27. gxf3 {[%clk 0:01:47]}  Re1+ {[%clk 0:00:49]} 28. Rxe1 {[%clk 0:01:40]}  Rxe1+ {[%clk 0:00:48]} 29. Rxe1 {[%clk 0:01:40]}  Qxd4 {[%clk 0:00:49]} 30. Re2 {[%clk 0:01:39]}  Qd3 {[%clk 0:00:39]} 31. Kg2 {[%clk 0:01:39]}  d4 {[%clk 0:00:39]} 32. a4 {[%clk 0:01:35]}  Qd1 {[%clk 0:00:32]} 33. Re5 {[%clk 0:01:29]}  d3 {[%clk 0:00:31]} 34. Nf1 {[%clk 0:01:29]}  Qxa4 {[%clk 0:00:27]} 35. Re3 {[%clk 0:01:23]}  Qd4 {[%clk 0:00:27]} 36. Nd2 {[%clk 0:01:22]}  Nd5 {[%clk 0:00:24]} 37. Re4 {[%clk 0:01:16]}  Qxb2 {[%clk 0:00:21]} 38. Nc4 {[%clk 0:01:17]}  Qc3 {[%clk 0:00:18]} 39. Kf1 {[%clk 0:01:11]}  Kg7 {[%clk 0:00:18]} 40. f4 {[%clk 0:01:05]}  b5 {[%clk 0:00:18]} 41. Ne3 {[%clk 0:00:52]}  d2 {[%clk 0:00:16]} 42. Nd1 {[%clk 0:00:50]}  Qd3+ {[%clk 0:00:15]} 43. Re2 {[%clk 0:00:49]}  Nxf4 {[%clk 0:00:16]} 44. Nc3 {[%clk 0:00:49]}  Nxe2 {[%clk 0:00:15]} 45. Kg2 {[%clk 0:00:48]}  Nxc3 {[%clk 0:00:15]} 46. f3 {[%clk 0:00:48]}  d1=Q {[%clk 0:00:16]} 47. Kg3 {[%clk 0:00:48]}  Q3xf3+ {[%clk 0:00:16]} 48. Kh4 {[%clk 0:00:49]}  g5+ {[%clk 0:00:16]} 49. Kh5 {[%clk 0:00:49]}  Qh3# {[%clk 0:00:16]} 0-1


[Site "https://www.chess.com"]